[Event "*** Titled Tuesday Blitz"]
[Site "Chess.com"]
[Date "2019.02.05"]
[Round "9"]
[White "Witaliss"]
[Black "goodluck06"]
[Result "0-1"]
[WhiteElo "2379"]
[BlackElo "2471"]
[TimeControl "180+2"]
[EndTime "15:13:18 PST"]
[Termination "goodluck06 won by resignation"]

1. d4 {[%clk 0:03:01.9]} 1... Nf6 {[%clk 0:02:57.9]} 2. Nf3 {[%clk 0:03:02.4]}
2... g6 {[%clk 0:02:58.3]} 3. Bf4 {[%clk 0:03:02.5]} 3... Bg7 {[%clk 0:02:58.6]}
4. e3 {[%clk 0:03:03.6]} 4... d6 {[%clk 0:02:57.7]} 5. h3 {[%clk 0:03:03.9]}
5... b6 {[%clk 0:02:58.7]} 6. c3 {[%clk 0:03:02.7]} 6... O-O {[%clk 0:02:58.5]}
7. Nbd2 {[%clk 0:03:02.8]} 7... Bb7 {[%clk 0:02:59.8]} 8. a4 {[%clk 0:03:00.3]}
8... a6 {[%clk 0:02:56.1]} 9. Bc4 {[%clk 0:02:59.5]} 9... c5 {[%clk 0:02:54.7]}
10. O-O {[%clk 0:02:59.8]} 10... cxd4 {[%clk 0:02:52.7]} 11. cxd4 {[%clk
0:02:57.7]} 11... Nd5 {[%clk 0:02:53.3]} 12. Bh2 {[%clk 0:02:56.9]} 12... Nd7
{[%clk 0:02:54.9]} 13. Qb3 {[%clk 0:02:55.5]} 13... N7f6 {[%clk 0:02:54.5]} 14.
Rfc1 {[%clk 0:02:49.6]} 14... a5 {[%clk 0:02:52.4]} 15. Bb5 {[%clk 0:02:47.9]}
15... Nb4 {[%clk 0:02:51.1]} 16. Ne1 {[%clk 0:02:39.1]} 16... Rc8 {[%clk
0:02:44.2]} 17. Nd3 {[%clk 0:02:37.7]} 17... Nfd5 {[%clk 0:02:37.9]} 18. Nxb4
{[%clk 0:02:30.6]} 18... Nxb4 {[%clk 0:02:38.9]} 19. Qd1 {[%clk 0:02:26.9]}
19... e5 {[%clk 0:02:21.7]} 20. dxe5 {[%clk 0:02:03.5]} 20... dxe5 {[%clk
0:02:22.1]} 21. Nc4 {[%clk 0:02:02.6]} 21... Nd3 {[%clk 0:02:05.9]} 22. Rc2
{[%clk 0:01:52.6]} 22... Qg5 {[%clk 0:02:05.7]} 23. Qg4 {[%clk 0:01:44.9]} 23...
Qxg4 {[%clk 0:01:40.6]} 24. hxg4 {[%clk 0:01:45.3]} 24... e4 {[%clk 0:01:40.9]}
25. Rd2 {[%clk 0:01:41.1]} 25... Rxc4 {[%clk 0:01:21.7]} 26. Bxc4 {[%clk
0:01:41.1]} 26... Nxb2 {[%clk 0:01:22.9]} 27. Bb5 {[%clk 0:01:34.6]} 27... Nc4
{[%clk 0:00:50.1]} 28. Rdd1 {[%clk 0:01:18]} 28... Bxa1 {[%clk 0:00:44.6]} 29.
Rxa1 {[%clk 0:01:18.7]} 29... Bd5 {[%clk 0:00:46.1]} 30. Rd1 {[%clk 0:01:15.4]}
30... Be6 {[%clk 0:00:43.6]} 31. Rd4 {[%clk 0:01:15.2]} 31... Rc8 {[%clk
0:00:44.6]} 32. Rxe4 {[%clk 0:01:15]} 32... Nd2 {[%clk 0:00:45]} 33. f3 {[%clk
0:01:01.1]} 33... Nxe4 {[%clk 0:00:39.4]} 34. fxe4 {[%clk 0:01:02.1]} 34... Rc2
{[%clk 0:00:39]} 35. Be5 {[%clk 0:01:00.5]} 35... Bb3 {[%clk 0:00:38.1]} 36. Bd4
{[%clk 0:01:01.1]} 36... Ra2 {[%clk 0:00:38]} 37. Bxb6 {[%clk 0:01:01.2]} 37...
Bxa4 {[%clk 0:00:39.6]} 38. Bc4 {[%clk 0:00:59.9]} 38... Ra1+ {[%clk 0:00:39.9]}
39. Kf2 {[%clk 0:01:00.3]} 39... Bd7 {[%clk 0:00:37.7]} 40. g5 {[%clk
0:01:00.4]} 40... a4 {[%clk 0:00:37.8]} 41. Bd4 {[%clk 0:01:00.8]} 41... Rc1
{[%clk 0:00:36.3]} 42. Bd5 {[%clk 0:01:01]} 42... Be6 {[%clk 0:00:35.3]} 43. Ke2
{[%clk 0:00:57.5]} 43... a3 {[%clk 0:00:35.1]} 44. Kd2 {[%clk 0:00:58.5]} 44...
Rg1 {[%clk 0:00:36]} 45. Kc2 {[%clk 0:00:54.1]} 45... a2 {[%clk 0:00:33.8]} 0-1

[Event "*** Titled Tuesday Blitz"]
[Site "Chess.com"]
[Date "2019.02.05"]
[Round "9"]
[White "aa175"]
[Black "IngOscarArdila"]
[Result "0-1"]
[WhiteElo "1901"]
[BlackElo "2065"]
[TimeControl "180+2"]
[EndTime "15:13:20 PST"]
[Termination "IngOscarArdila won on time"]

1. e4 {[%clk 0:00:16]} 1... e5 {[%clk 0:02:59.6]} 2. Nf3 {[%clk 0:00:16.6]} 2...
Nf6 {[%clk 0:03:00.8]} 3. Nc3 {[%clk 0:00:15.6]} 3... Bb4 {[%clk 0:02:59.9]} 4.
Nxe5 {[%clk 0:00:14.3]} 4... O-O {[%clk 0:02:59.2]} 5. Nf3 {[%clk 0:00:15.1]}
5... Re8 {[%clk 0:02:59.9]} 6. Be2 {[%clk 0:00:15.4]} 6... c6 {[%clk 0:02:58.9]}
7. d3 {[%clk 0:00:16]} 7... d5 {[%clk 0:03:00.2]} 8. exd5 {[%clk 0:00:16]} 8...
cxd5 {[%clk 0:03:00.8]} 9. O-O {[%clk 0:00:14.2]} 9... Nc6 {[%clk 0:03:01.7]}
10. Bg5 {[%clk 0:00:14.2]} 10... Be6 {[%clk 0:02:56.4]} 11. d4 {[%clk
0:00:12.6]} 11... h6 {[%clk 0:02:56.6]} 12. Bh4 {[%clk 0:00:12.6]} 12... Be7
{[%clk 0:02:56.2]} 13. Ne5 {[%clk 0:00:06.6]} 13... Nxe5 {[%clk 0:02:55.6]} 14.
dxe5 {[%clk 0:00:08.5]} 14... Nd7 {[%clk 0:02:57]} 15. Bxe7 {[%clk 0:00:10.4]}
15... Qxe7 {[%clk 0:02:58.1]} 16. Nxd5 {[%clk 0:00:11.7]} 16... Qc5 {[%clk
0:02:58.1]} 17. Nf4 {[%clk 0:00:08.4]} 17... Bf5 {[%clk 0:02:57.7]} 18. Bd3
{[%clk 0:00:04.7]} 18... Bxd3 {[%clk 0:02:50.2]} 19. Nxd3 {[%clk 0:00:05.6]}
19... Qb6 {[%clk 0:02:45.3]} 20. Qe2 {[%clk 0:00:04.2]} 20... Rac8 {[%clk
0:02:44.2]} 21. Rfe1 {[%clk 0:00:03.6]} 21... Nf8 {[%clk 0:02:44.8]} 22. Kh1
{[%clk 0:00:03.6]} 22... Ne6 {[%clk 0:02:45.9]} 23. f4 {[%clk 0:00:04.1]} 23...
Nd4 {[%clk 0:02:46.8]} 24. Qe4 {[%clk 0:00:04.7]} 24... Nxc2 {[%clk 0:02:47.4]}
25. Reb1 {[%clk 0:00:04.2]} 25... Nxa1 {[%clk 0:02:47.6]} 26. Rxa1 {[%clk
0:00:06.1]} 26... Rc2 {[%clk 0:02:48.4]} 27. h3 {[%clk 0:00:05.2]} 27... Rd8
{[%clk 0:02:42.6]} 28. Rd1 {[%clk 0:00:05]} 28... Qb5 {[%clk 0:02:31.1]} 29. a4
{[%clk 0:00:04.8]} 29... Qc6 {[%clk 0:02:17.8]} 30. Qxc6 {[%clk 0:00:03.4]}
30... Rxc6 {[%clk 0:02:18.8]} 31. Nf2 {[%clk 0:00:03.5]} 31... Rxd1+ {[%clk
0:02:17.5]} 32. Nxd1 {[%clk 0:00:05.4]} 32... Rc4 {[%clk 0:02:18.9]} 33. Kh2
{[%clk 0:00:07.3]} 33... Rxf4 {[%clk 0:02:19.6]} 34. Nc3 {[%clk 0:00:08]} 34...
Rb4 {[%clk 0:02:20.1]} 35. Nb5 {[%clk 0:00:06.6]} 35... a6 {[%clk 0:02:19.3]}
36. Nd6 {[%clk 0:00:06.7]} 36... Rxb2 {[%clk 0:02:20.1]} 37. a5 {[%clk
0:00:07.9]} 37... Kf8 {[%clk 0:02:19.8]} 38. Kg3 {[%clk 0:00:07.7]} 38... Ke7
{[%clk 0:02:20.9]} 39. Kf4 {[%clk 0:00:08.1]} 39... Rxg2 {[%clk 0:02:21.6]} 40.
Nxb7 {[%clk 0:00:08.9]} 40... Ra2 {[%clk 0:02:19.8]} 41. Kf5 {[%clk 0:00:07.8]}
41... Ra3 {[%clk 0:02:19.1]} 42. h4 {[%clk 0:00:05.6]} 42... g6+ {[%clk
0:02:18.1]} 43. Ke4 {[%clk 0:00:06.1]} 43... Ra4+ {[%clk 0:02:19.1]} 44. Kd5
{[%clk 0:00:07.4]} 44... Rxh4 {[%clk 0:02:19.4]} 45. Nd6 {[%clk 0:00:07]} 45...
Ra4 {[%clk 0:02:18.9]} 46. Nc8+ {[%clk 0:00:07.5]} 46... Kd8 {[%clk 0:02:16]}
47. Nd6 {[%clk 0:00:06.4]} 47... Rxa5+ {[%clk 0:02:16.3]} 48. Kc6 {[%clk
0:00:07.8]} 48... Ke7 {[%clk 0:02:06.2]} 49. Nc4 {[%clk 0:00:06.8]} 49... Ra1
{[%clk 0:02:03.6]} 50. Ne3 {[%clk 0:00:07.2]} 50... a5 {[%clk 0:02:04.3]} 51.
Nd5+ {[%clk 0:00:07.6]} 51... Ke6 {[%clk 0:02:05.6]} 52. Nf4+ {[%clk 0:00:02.4]}
52... Kxe5 {[%clk 0:02:06.6]} 53. Nd3+ {[%clk 0:00:02.4]} 53... Kf5 {[%clk
0:02:07.8]} 54. Nf2 {[%clk 0:00:02.3]} 54... a4 {[%clk 0:02:09.1]} 55. Kb5
{[%clk 0:00:02.3]} 55... a3 {[%clk 0:02:10.4]} 56. Kb4 {[%clk 0:00:02.4]} 56...
a2 {[%clk 0:02:11.7]} 57. Ka3 {[%clk 0:00:02.2]} 57... Rf1 {[%clk 0:02:12.1]}
58. Nd3 {[%clk 0:00:02.2]} 58... a1=Q+ {[%clk 0:02:12.4]} 59. Kb4 {[%clk
0:00:03.7]} 59... Qd4+ {[%clk 0:02:10.7]} 60. Ka5 {[%clk 0:00:02.1]} 60... Qxd3
{[%clk 0:02:11.2]} 61. Kb6 {[%clk 0:00:02.3]} 61... Rc1 {[%clk 0:02:11.7]} 62.
Ka7 {[%clk 0:00:02.3]} 62... Qb3 {[%clk 0:02:11.6]} 0-1

[Event "*** Titled Tuesday Blitz"]
[Site "Chess.com"]
[Date "2019.02.05"]
[Round "9"]
[White "champ2005"]
[Black "GMsKoRPioN"]
[Result "1-0"]
[WhiteElo "2605"]
[BlackElo "2551"]
[TimeControl "180+2"]
[EndTime "15:13:21 PST"]
[Termination "champ2005 won by checkmate"]

1. b3 {[%clk 0:03:01.2]} 1... d6 {[%clk 0:03:01.1]} 2. Bb2 {[%clk 0:03:00.4]}
2... Nd7 {[%clk 0:03:02.5]} 3. g3 {[%clk 0:02:59.8]} 3... Ngf6 {[%clk
0:03:03.5]} 4. Bg2 {[%clk 0:03:01.7]} 4... g6 {[%clk 0:03:04.9]} 5. Nf3 {[%clk
0:03:02.3]} 5... Bg7 {[%clk 0:03:06.1]} 6. O-O {[%clk 0:03:03.2]} 6... O-O
{[%clk 0:03:07.6]} 7. d4 {[%clk 0:03:04.5]} 7... e5 {[%clk 0:03:07.9]} 8. dxe5
{[%clk 0:03:05.8]} 8... Ng4 {[%clk 0:03:09]} 9. c4 {[%clk 0:03:07]} 9... Ngxe5
{[%clk 0:03:09.4]} 10. Nxe5 {[%clk 0:03:08.5]} 10... Nxe5 {[%clk 0:03:11.3]} 11.
Nc3 {[%clk 0:03:09.5]} 11... Rb8 {[%clk 0:03:09.4]} 12. Qd2 {[%clk 0:03:10.8]}
12... b6 {[%clk 0:03:08.6]} 13. Nd5 {[%clk 0:03:11.6]} 13... Be6 {[%clk
0:03:01.1]} 14. Nb4 {[%clk 0:03:01.8]} 14... a5 {[%clk 0:02:24.2]} 15. Nd5
{[%clk 0:02:58.6]} 15... a4 {[%clk 0:02:16.3]} 16. Rad1 {[%clk 0:02:51.3]} 16...
Bxd5 {[%clk 0:01:57]} 17. Bxd5 {[%clk 0:02:50.3]} 17... axb3 {[%clk 0:01:51.6]}
18. axb3 {[%clk 0:02:51.1]} 18... b5 {[%clk 0:01:52.9]} 19. cxb5 {[%clk
0:01:54.1]} 19... Rxb5 {[%clk 0:01:47.6]} 20. Qc2 {[%clk 0:01:51.7]} 20... c6
{[%clk 0:01:30.8]} 21. Bxe5 {[%clk 0:01:47.7]} 21... Bxe5 {[%clk 0:01:08.4]} 22.
Qxc6 {[%clk 0:01:46.1]} 22... Rc5 {[%clk 0:01:03.9]} 23. Qa4 {[%clk 0:01:47]}
23... Qf6 {[%clk 0:01:01.9]} 24. b4 {[%clk 0:01:38.9]} 24... Rc3 {[%clk
0:00:58.3]} 25. b5 {[%clk 0:01:39.9]} 25... Rb8 {[%clk 0:00:50.4]} 26. f4 {[%clk
0:01:38.2]} 26... Rc7 {[%clk 0:00:27.7]} 27. fxe5 {[%clk 0:01:36.2]} 27... Qxe5
{[%clk 0:00:29.6]} 28. Qf4 {[%clk 0:01:21.5]} 28... Qxf4 {[%clk 0:00:29.8]} 29.
Rxf4 {[%clk 0:01:21.8]} 29... Rxb5 {[%clk 0:00:31.2]} 30. e4 {[%clk 0:01:22.9]}
30... Rb2 {[%clk 0:00:28]} 31. Rdf1 {[%clk 0:01:23]} 31... Rcc2 {[%clk
0:00:21.5]} 32. R4f2 {[%clk 0:01:21.7]} 32... Kg7 {[%clk 0:00:14.2]} 33. Rxf7+
{[%clk 0:01:19.8]} 33... Kh6 {[%clk 0:00:15.4]} 34. R7f2 {[%clk 0:01:21.7]}
34... Kg5 {[%clk 0:00:15.6]} 35. Kg2 {[%clk 0:01:22.4]} 35... h5 {[%clk
0:00:15.7]} 36. h4+ {[%clk 0:01:22.3]} 36... Kh6 {[%clk 0:00:16.6]} 37. Rxc2
{[%clk 0:01:23.4]} 37... Rxc2+ {[%clk 0:00:18.2]} 38. Rf2 {[%clk 0:01:25.3]}
38... Rc1 {[%clk 0:00:19.6]} 39. Rf6 {[%clk 0:01:23.4]} 39... Rc2+ {[%clk
0:00:20.1]} 40. Kh3 {[%clk 0:01:23.8]} 40... Kg7 {[%clk 0:00:19.3]} 41. Rxd6
{[%clk 0:01:24.5]} 41... Re2 {[%clk 0:00:20.6]} 42. Re6 {[%clk 0:01:18.8]} 42...
Re3 {[%clk 0:00:20]} 43. e5 {[%clk 0:01:19.7]} 43... Rd3 {[%clk 0:00:19.6]} 44.
Rxg6+ {[%clk 0:01:19.2]} 44... Kh7 {[%clk 0:00:17.5]} 45. Rd6 {[%clk 0:01:18.1]}
45... Kg7 {[%clk 0:00:15.3]} 46. Rd7+ {[%clk 0:01:17.4]} 46... Kg6 {[%clk
0:00:15.9]} 47. Be4+ {[%clk 0:01:17.5]} 47... Kh6 {[%clk 0:00:17.4]} 48. Rh7#
{[%clk 0:01:18.3]} 1-0

[Event "*** Titled Tuesday Blitz"]
[Site "Chess.com"]
[Date "2019.02.05"]
[Round "9"]
[White "rasmussvane"]
[Black "vovachesss"]
[Result "1-0"]
[WhiteElo "2757"]
[BlackElo "2587"]
[TimeControl "180+2"]
[EndTime "15:13:26 PST"]
[Termination "rasmussvane won by resignation"]

1. Nf3 {[%clk 0:03:01.9]} 1... d5 {[%clk 0:02:59.8]} 2. d4 {[%clk 0:03:03]} 2...
Nc6 {[%clk 0:02:55.8]} 3. e3 {[%clk 0:03:03.4]} 3... Bg4 {[%clk 0:02:54.9]} 4.
Nbd2 {[%clk 0:03:04.3]} 4... e5 {[%clk 0:02:55.1]} 5. h3 {[%clk 0:03:04.1]} 5...
Bxf3 {[%clk 0:02:53.8]} 6. Nxf3 {[%clk 0:03:06]} 6... Bd6 {[%clk 0:02:52.6]} 7.
c3 {[%clk 0:02:23.1]} 7... Nge7 {[%clk 0:02:51.2]} 8. Be2 {[%clk 0:02:17.5]}
8... O-O {[%clk 0:02:51.8]} 9. dxe5 {[%clk 0:02:17.5]} 9... Nxe5 {[%clk
0:02:52.3]} 10. b3 {[%clk 0:02:19]} 10... c6 {[%clk 0:02:48.5]} 11. Bb2 {[%clk
0:02:20.4]} 11... N7g6 {[%clk 0:02:46]} 12. O-O {[%clk 0:02:15.6]} 12... Nxf3+
{[%clk 0:02:33.4]} 13. Bxf3 {[%clk 0:02:17.5]} 13... Qf6 {[%clk 0:02:30.5]} 14.
Qc2 {[%clk 0:02:11.3]} 14... Nh4 {[%clk 0:02:11.9]} 15. Bg4 {[%clk 0:02:03.4]}
15... h5 {[%clk 0:01:34.4]} 16. Bxh5 {[%clk 0:01:54.5]} 16... Qe5 {[%clk
0:01:34.8]} 17. g3 {[%clk 0:01:49.7]} 17... Qxh5 {[%clk 0:01:23.3]} 18. gxh4
{[%clk 0:01:51]} 18... Qe5 {[%clk 0:00:46.8]} 19. f3 {[%clk 0:01:51.7]} 19...
Qxe3+ {[%clk 0:00:46.1]} 20. Qf2 {[%clk 0:01:52.1]} 20... Qf4 {[%clk 0:00:41.4]}
21. c4 {[%clk 0:01:46.2]} 21... dxc4 {[%clk 0:00:39.3]} 22. Rad1 {[%clk
0:01:45.4]} 22... Bc7 {[%clk 0:00:28.7]} 23. bxc4 {[%clk 0:01:15.1]} 23... Qxc4
{[%clk 0:00:25.8]} 24. Qg2 {[%clk 0:01:15.9]} 24... f6 {[%clk 0:00:23.6]} 25.
Kh1 {[%clk 0:01:09.6]} 25... Rf7 {[%clk 0:00:21.7]} 26. Rg1 {[%clk 0:01:09.5]}
26... Qxh4 {[%clk 0:00:17.6]} 27. Rd4 {[%clk 0:01:10.5]} 27... Qh7 {[%clk
0:00:06.5]} 28. Rg4 {[%clk 0:01:12.1]} 28... Kh8 {[%clk 0:00:04.3]} 29. Bd4
{[%clk 0:00:51.7]} 29... Be5 {[%clk 0:00:05.5]} 30. Bf2 {[%clk 0:00:52.2]} 30...
Rg8 {[%clk 0:00:06.4]} 31. Rh4 {[%clk 0:00:53.4]} 31... g5 {[%clk 0:00:06.9]}
32. Rxh7+ {[%clk 0:00:53.6]} 32... Rxh7 {[%clk 0:00:08.8]} 33. Be3 {[%clk
0:00:49.9]} 33... Rg6 {[%clk 0:00:08.2]} 34. f4 {[%clk 0:00:49.6]} 34... Rgh6
{[%clk 0:00:08.6]} 35. Kh2 {[%clk 0:00:45.2]} 35... Rxh3+ {[%clk 0:00:07]} 36.
Qxh3 {[%clk 0:00:46.4]} 36... gxf4 {[%clk 0:00:08.7]} 37. Qxh7+ {[%clk
0:00:46.5]} 37... Kxh7 {[%clk 0:00:09.1]} 38. Bxa7 {[%clk 0:00:48.1]} 38... f3+
{[%clk 0:00:08.8]} 39. Kh3 {[%clk 0:00:49.3]} 39... f5 {[%clk 0:00:10.1]} 40.
Rf1 {[%clk 0:00:50]} 40... Kg6 {[%clk 0:00:11]} 41. Rxf3 {[%clk 0:00:51.2]}
41... Kf6 {[%clk 0:00:12.6]} 42. a4 {[%clk 0:00:52.3]} 42... Ke6 {[%clk
0:00:13.9]} 43. Rb3 {[%clk 0:00:53.4]} 43... Kd5 {[%clk 0:00:14.2]} 44. Rxb7
{[%clk 0:00:54.1]} 44... Ke4 {[%clk 0:00:16.1]} 45. a5 {[%clk 0:00:54.1]} 45...
f4 {[%clk 0:00:15.8]} 46. a6 {[%clk 0:00:55.6]} 46... f3 {[%clk 0:00:16.9]} 47.
Bf2 {[%clk 0:00:56.4]} 47... Kd3 {[%clk 0:00:18]} 48. a7 {[%clk 0:00:57.3]}
48... Ke2 {[%clk 0:00:19.7]} 49. Bc5 {[%clk 0:00:55.6]} 49... f2 {[%clk
0:00:19.4]} 50. Bxf2 {[%clk 0:00:56.6]} 1-0

[Event "*** Titled Tuesday Blitz"]
[Site "Chess.com"]
[Date "2019.02.05"]
[Round "9"]
[White "NemtsevIgor"]
[Black "Fivetrick"]
[Result "1-0"]
[WhiteElo "2322"]
[BlackElo "2520"]
[TimeControl "180+2"]
[EndTime "15:13:36 PST"]
[Termination "NemtsevIgor won on time"]

1. d4 {[%clk 0:03:01.9]} 1... Nf6 {[%clk 0:02:59.7]} 2. Bf4 {[%clk 0:03:02]}
2... g6 {[%clk 0:02:59.2]} 3. Nf3 {[%clk 0:03:02.3]} 3... Bg7 {[%clk 0:02:59.7]}
4. e3 {[%clk 0:03:02.7]} 4... O-O {[%clk 0:03:01.1]} 5. h3 {[%clk 0:03:02.6]}
5... d6 {[%clk 0:03:02.4]} 6. Be2 {[%clk 0:03:03.5]} 6... Nc6 {[%clk 0:03:03.8]}
7. O-O {[%clk 0:03:01.7]} 7... Nd7 {[%clk 0:03:03.8]} 8. c3 {[%clk 0:03:02.1]}
8... e5 {[%clk 0:03:04.4]} 9. Bh2 {[%clk 0:03:01.6]} 9... f5 {[%clk 0:03:01.6]}
10. Na3 {[%clk 0:03:00.8]} 10... g5 {[%clk 0:03:00.9]} 11. dxe5 {[%clk
0:02:56.4]} 11... dxe5 {[%clk 0:03:01.2]} 12. Nc4 {[%clk 0:02:53.5]} 12... Kh8
{[%clk 0:03:00.9]} 13. Qd5 {[%clk 0:02:42.2]} 13... Qe7 {[%clk 0:02:41.6]} 14.
Rad1 {[%clk 0:02:26.6]} 14... Nb6 {[%clk 0:02:28.8]} 15. Nxb6 {[%clk 0:02:08.9]}
15... axb6 {[%clk 0:02:28.4]} 16. a3 {[%clk 0:02:09.5]} 16... Be6 {[%clk
0:02:22.6]} 17. Qd2 {[%clk 0:02:00.1]} 17... Bb3 {[%clk 0:01:30.8]} 18. Rde1
{[%clk 0:01:55.7]} 18... g4 {[%clk 0:01:28.7]} 19. hxg4 {[%clk 0:01:24.3]} 19...
fxg4 {[%clk 0:01:28.9]} 20. e4 {[%clk 0:01:08.1]} 20... gxf3 {[%clk 0:01:26.8]}
21. Bxf3 {[%clk 0:01:09.3]} 21... Rad8 {[%clk 0:00:39.9]} 22. Qe3 {[%clk
0:00:59.9]} 22... Rf6 {[%clk 0:00:29.9]} 23. Bg3 {[%clk 0:00:56.9]} 23... Bh6
{[%clk 0:00:28.1]} 24. Qe2 {[%clk 0:00:53.2]} 24... Rd2 {[%clk 0:00:15.7]} 25.
Qb5 {[%clk 0:00:52.3]} 25... Qe6 {[%clk 0:00:13.4]} 26. Be2 {[%clk 0:00:24.2]}
26... Rxe2 {[%clk 0:00:09.5]} 27. Qxe2 {[%clk 0:00:24.4]} 27... Bc4 {[%clk
0:00:10.5]} 28. Qh5 {[%clk 0:00:24]} 28... Bxf1 {[%clk 0:00:10.5]} 29. Rxf1
{[%clk 0:00:25.1]} 29... Bf4 {[%clk 0:00:04.9]} 30. Rd1 {[%clk 0:00:19.7]} 30...
Bxg3 {[%clk 0:00:04.5]} 31. fxg3 {[%clk 0:00:21.6]} 31... Rf8 {[%clk 0:00:04.5]}
32. g4 {[%clk 0:00:21]} 32... Qf6 {[%clk 0:00:05.1]} 33. g5 {[%clk 0:00:21.3]}
33... Qf2+ {[%clk 0:00:05.5]} 34. Kh1 {[%clk 0:00:22.7]} 34... Qf4 {[%clk
0:00:04.5]} 35. Rd7 {[%clk 0:00:21]} 35... Qf1+ {[%clk 0:00:04.5]} 36. Kh2
{[%clk 0:00:21.6]} 36... Qf4+ {[%clk 0:00:05.2]} 37. Kh1 {[%clk 0:00:22.4]}
37... Qxe4 {[%clk 0:00:05.7]} 38. Qh6 {[%clk 0:00:20.9]} 38... Qe1+ {[%clk
0:00:03.6]} 39. Kh2 {[%clk 0:00:21.7]} 1-0

[Event "*** Titled Tuesday Blitz"]
[Site "Chess.com"]
[Date "2019.02.05"]
[Round "9"]
[White "otrov-11"]
[Black "LuisFSiles"]
[Result "0-1"]
[WhiteElo "2326"]
[BlackElo "2276"]
[TimeControl "180+2"]
[EndTime "15:13:45 PST"]
[Termination "LuisFSiles won by checkmate"]

1. d4 {[%clk 0:03:01.9]} 1... Nf6 {[%clk 0:02:59.8]} 2. c4 {[%clk 0:03:03]} 2...
c5 {[%clk 0:02:59.9]} 3. d5 {[%clk 0:03:03.8]} 3... e6 {[%clk 0:03:01.2]} 4. Nc3
{[%clk 0:03:04.6]} 4... exd5 {[%clk 0:03:02.3]} 5. cxd5 {[%clk 0:03:06.5]} 5...
d6 {[%clk 0:03:03.3]} 6. e4 {[%clk 0:03:08]} 6... g6 {[%clk 0:03:04.7]} 7. f4
{[%clk 0:03:09.6]} 7... Bg7 {[%clk 0:03:05.1]} 8. Bb5+ {[%clk 0:03:11.3]} 8...
Nfd7 {[%clk 0:03:06.6]} 9. Nf3 {[%clk 0:03:12]} 9... O-O {[%clk 0:03:05.9]} 10.
O-O {[%clk 0:03:12.4]} 10... a6 {[%clk 0:03:03.3]} 11. Bd3 {[%clk 0:03:13.9]}
11... b5 {[%clk 0:03:04.6]} 12. Re1 {[%clk 0:03:06.8]} 12... Re8 {[%clk
0:03:04.1]} 13. e5 {[%clk 0:02:32.6]} 13... dxe5 {[%clk 0:03:02.5]} 14. d6
{[%clk 0:02:21.5]} 14... Bb7 {[%clk 0:02:21]} 15. Be4 {[%clk 0:01:39.6]} 15...
Bxe4 {[%clk 0:02:05.4]} 16. Rxe4 {[%clk 0:01:41.5]} 16... exf4 {[%clk
0:01:50.2]} 17. Rxe8+ {[%clk 0:01:35]} 17... Qxe8 {[%clk 0:01:52.1]} 18. Nd5
{[%clk 0:01:36.5]} 18... Qe4 {[%clk 0:01:36.2]} 19. Bxf4 {[%clk 0:01:24.6]}
19... Nc6 {[%clk 0:01:35.4]} 20. Qd2 {[%clk 0:01:18.8]} 20... Nd4 {[%clk
0:01:30.7]} 21. Ne7+ {[%clk 0:01:17.8]} 21... Kh8 {[%clk 0:01:26.3]} 22. Nxd4
{[%clk 0:01:13.8]} 22... Qxd4+ {[%clk 0:01:14.7]} 23. Kh1 {[%clk 0:01:05.6]}
23... Qxb2 {[%clk 0:01:09.8]} 24. Qxb2 {[%clk 0:00:58.9]} 24... Bxb2 {[%clk
0:01:11.7]} 25. Rf1 {[%clk 0:01:00.3]} 25... Kg7 {[%clk 0:01:01.4]} 26. Be3
{[%clk 0:00:57.2]} 26... f6 {[%clk 0:00:56.9]} 27. Bf2 {[%clk 0:00:52.2]} 27...
Be5 {[%clk 0:00:54.5]} 28. Rd1 {[%clk 0:00:51.8]} 28... a5 {[%clk 0:00:51.1]}
29. Rd5 {[%clk 0:00:46.5]} 29... Ra6 {[%clk 0:00:50.1]} 30. Bg3 {[%clk
0:00:27.1]} 30... Kf7 {[%clk 0:00:39.8]} 31. Bxe5 {[%clk 0:00:26.7]} 31... fxe5
{[%clk 0:00:40.4]} 32. Nc8 {[%clk 0:00:23.6]} 32... Ke6 {[%clk 0:00:36.7]} 33.
Rd1 {[%clk 0:00:22.2]} 33... Rc6 {[%clk 0:00:38.2]} 34. Na7 {[%clk 0:00:21.2]}
34... Rxd6 {[%clk 0:00:36.6]} 35. Rxd6+ {[%clk 0:00:22.4]} 35... Kxd6 {[%clk
0:00:38.1]} 36. Nxb5+ {[%clk 0:00:23.6]} 36... Kd5 {[%clk 0:00:38.1]} 37. h4
{[%clk 0:00:22.2]} 37... Kc4 {[%clk 0:00:35]} 38. Nd6+ {[%clk 0:00:22.8]} 38...
Kd3 {[%clk 0:00:36.3]} 39. g4 {[%clk 0:00:21.5]} 39... c4 {[%clk 0:00:37.2]} 40.
h5 {[%clk 0:00:21.6]} 40... gxh5 {[%clk 0:00:36.5]} 41. gxh5 {[%clk 0:00:23.5]}
41... c3 {[%clk 0:00:37.9]} 42. Kg2 {[%clk 0:00:14.3]} 42... c2 {[%clk
0:00:39.1]} 43. Kg3 {[%clk 0:00:16.2]} 43... c1=Q {[%clk 0:00:40.4]} 44. Kg4
{[%clk 0:00:17.7]} 44... Qf4+ {[%clk 0:00:40.7]} 45. Kh3 {[%clk 0:00:19.1]}
45... e4 {[%clk 0:00:40.8]} 46. a4 {[%clk 0:00:19.5]} 46... Qxd6 {[%clk
0:00:41.2]} 47. h6 {[%clk 0:00:21.4]} 47... Qxh6+ {[%clk 0:00:41.9]} 48. Kg4
{[%clk 0:00:23.3]} 48... Qg6+ {[%clk 0:00:43]} 49. Kf4 {[%clk 0:00:24.1]} 49...
Qf6+ {[%clk 0:00:43.2]} 50. Kg4 {[%clk 0:00:25.4]} 50... Ne5+ {[%clk 0:00:44]}
51. Kg3 {[%clk 0:00:25.3]} 51... Qg5+ {[%clk 0:00:42.9]} 52. Kh3 {[%clk
0:00:26.4]} 52... Qg4+ {[%clk 0:00:42.6]} 53. Kh2 {[%clk 0:00:27.6]} 53... Nf3+
{[%clk 0:00:43.7]} 54. Kh1 {[%clk 0:00:29.5]} 54... Qg1# {[%clk 0:00:44.7]} 0-1